bitfinex/quotes_ETHUSD_20240816
["timestamp","ask_amount","ask_price","bid_price","bid_amount"]
[1723767251286,7.76472,2575.8,2575.2,3.88311]
[1723767251445,3.88259,2575.6,2575.1,35.0]
[1723767252294,3.88259,2575.6,2575.1,38.88331]
[1723767252656,7.7653,2575.6,2575.1,38.88331]
[1723767252988,7.7653,2575.6,2575.1,35.0]
[1723767252989,3.88259,2575.6,2575.1,35.0]
[1723767254706,3.88259,2575.6,2575.1,38.88333]
[1723767255305,3.88259,2575.6,2575.2,2.3241]
[1723767255607,3.88234,2575.8,2575.2,6.20726]
[1723767255806,7.76473,2575.8,2575.2,6.20726]
[1723767255963,3.8825,2575.7,2575.2,6.20726]
[1723767256566,3.88259,2575.6,2575.2,2.3241]
[1723767259096,3.88245,2575.7,2575.2,2.3241]
[1723767259299,0.03499617,2575.5,2575.2,2.3241]
[1723767259611,3.88267,2575.6,2575.2,2.3241]
[1723767259811,0.0349699,2575.4,2575.2,2.3241]
[1723767260112,0.03493452,2575.3,2575.2,2.3241]
[1723767260315,7.76497,2575.7,2575.2,2.3241]
[1723767260316,3.88259,2575.6,2575.2,2.3241]
[1723767260471,0.03497813,2575.3,2575.2,2.3241]
[1723767260672,3.88319,2575.2,2575.1,35.0]
[1723767260869,3.91759296,2575.2,2575.1,35.0]
[1723767261096,7.80078296,2575.2,2575.1,35.0]
[1723767261293,8.58086126,2575.2,2575.1,35.0]
[1723767261710,3.88351,2575.0,2574.6,2.496]
[1723767262183,0.03429973,2574.9,2574.7,35.0]
[1723767263510,3.88352,2575.0,2574.7,35.0]
[1723767264019,3.9201543,2574.9,2574.7,35.0]
[1723767265970,0.0364343,2574.9,2574.7,35.0]
[1723767266673,3.9201643,2574.9,2574.7,35.0]
[1723767266874,3.88379,2574.8,2574.7,35.0]
[1723767267074,3.91836173,2574.8,2574.7,35.0]
[1723767268100,0.03457173,2574.8,2574.7,35.0]
[1723767268426,7.76712,2575.0,2574.7,35.0]
[1723767269419,3.88352,2575.0,2574.7,35.0]
[1723767269614,7.76714,2575.0,2574.7,35.0]
[1723767269913,3.8835,2575.0,2574.8,2.4823]
[1723767270674,3.8835,2575.0,2574.9,35.0]
[1723767272709,3.88336,2575.1,2574.9,35.0]
[1723767274351,7.76659,2575.2,2574.9,35.0]
[1723767274950,3.88336,2575.1,2574.9,35.0]
[1723767275455,7.76661,2575.2,2575.0,2.3104]
[1723767275660,7.76659,2575.2,2575.0,2.3104]
[1723767275946,3.88328,2575.2,2574.9,35.0]
[1723767276319,3.88334,2575.1,2574.9,35.0]
[1723767277969,3.88349,2575.0,2574.9,35.0]
[1723767281561,7.76698,2575.0,2574.9,35.0]
[1723767282447,3.88375,2574.9,2574.6,2.3185]
[1723767282649,3.88349,2575.0,2574.6,2.3185]
[1723767282954,3.88349,2575.0,2574.7,35.0]
[1723767283742,3.88367,2574.9,2574.7,35.0]
[1723767287001,3.88379,2574.8,2574.7,35.0]
[1723767287164,7.76758,2574.8,2574.7,35.0]
[1723767291401,3.88366,2574.9,2574.7,35.0]
[1723767291892,3.88379,2574.8,2574.7,35.0]
[1723767293754,7.76758,2574.8,2574.7,35.0]
[1723767297428,8.544338,2574.8,2574.7,35.0]
[1723767300318,7.76758,2574.8,2574.7,35.0]
[1723767302544,3.88405,2574.7,2574.5,2.3752]
[1723767302955,3.88405,2574.7,2574.6,35.0]
[1723767303791,3.88379,2574.8,2574.6,35.0]
[1723767303965,7.76767,2574.8,2574.6,35.0]
[1723767304166,3.88379,2574.8,2574.6,35.0]
[1723767304475,7.7677,2574.8,2574.6,35.0]
[1723767304633,3.88379,2574.8,2574.6,35.0]
[1723767304834,3.8836,2575.0,2574.6,35.0]
[1723767305504,3.88365,2574.9,2574.6,35.0]
[1723767306157,3.88379,2574.8,2574.6,35.0]
[1723767306353,7.7677,2574.8,2574.6,35.0]
[1723767306765,3.88379,2574.8,2574.6,35.0]
[1723767307292,3.88378,2574.9,2574.6,35.0]
[1723767307444,3.8836,2575.0,2574.6,35.0]
[1723767307786,3.8835,2575.0,2574.8,2.2836]
[1723767308169,3.88364,2574.9,2574.8,2.2836]
[1723767308356,3.88364,2574.9,2574.8,37.2836]
[1723767308687,3.88336,2575.1,2574.8,38.63386223]
[1723767308837,3.88336,2575.1,2574.8,37.2836]
[1723767309178,3.88328,2575.2,2574.8,37.2836]
[1723767309408,3.88335,2575.1,2574.8,37.2836]
[1723767309963,3.88359,2575.0,2574.8,37.2836]
[1723767310709,3.88335,2575.1,2574.8,37.2836]
[1723767310906,1.357,2574.9,2574.8,35.0]
[1723767311108,9.12428,2574.9,2574.8,35.0]
[1723767311404,3.88418,2574.6,2574.2,2.3162]
[1723767311822,3.88418,2574.6,2574.3,35.0]
[1723767312876,7.76841,2574.6,2574.3,35.0]
[1723767313693,3.88433,2574.5,2574.3,35.0]
[1723767314917,3.88386,2574.8,2574.3,35.0]
[1723767315082,3.88386,2574.8,2574.4,5.65527791]
[1723767315426,3.88386,2574.8,2574.4,2.2792]
[1723767315427,3.8841,2574.6,2574.4,2.2792]
[1723767315924,3.8841,2574.6,2574.5,35.0]
[1723767319526,3.88389,2574.8,2574.5,35.0]
[1723767319870,3.88389,2574.8,2574.2,3.1557494]
[1723767320075,7.76777,2574.8,2574.3,3.37619713]
[1723767320368,3.88388,2574.8,2574.4,35.0]
[1723767320522,7.44,2574.9,2574.5,2.4809]
[1723767321266,11.32366,2574.9,2574.5,2.4809]
[1723767322449,3.88382,2574.8,2574.5,2.4809]
[1723767322634,3.88414,2574.6,2574.4,35.0]
[1723767322840,3.88424,2574.5,2574.4,35.0]
[1723767323080,3.8847,2574.2,2573.9,0.8100494]
[1723767323378,3.88526,2573.9,2573.5,2.4915]
[1723767323562,3.88526,2573.9,2573.6,35.0]
[1723767324241,7.76989,2574.1,2573.6,35.0]
[1723767324479,7.76989,2574.1,2573.7,1.35089594]
[1723767324804,7.76989,2574.1,2573.5,3.3015494]
[1723767324805,7.76989,2574.1,2573.5,2.4915]
[1723767325011,7.76989,2574.1,2573.6,1.35089445]
[1723767325313,7.76989,2574.1,2573.6,35.0]
[1723767325522,3.88494,2574.1,2573.6,35.0]
[1723767325671,3.88516,2573.9,2573.6,35.0]
[1723767326166,3.88494,2574.1,2573.6,35.0]
[1723767326167,3.885,2574.0,2573.6,35.0]
[1723767328072,3.88517,2573.9,2573.6,35.0]
[1723767328274,3.88494,2574.1,2573.6,35.0]
[1723767328511,3.88501,2574.0,2573.6,35.0]
[1723767329373,7.76989,2574.1,2573.6,35.0]
[1723767329600,3.88501,2574.0,2573.6,35.0]
[1723767330119,3.88494,2574.1,2573.6,35.0]
[1723767331104,3.88501,2574.0,2573.6,35.0]
[1723767331908,3.88494,2574.1,2573.6,35.0]
[1723767332154,7.76992,2574.1,2573.6,35.0]
[1723767332356,3.88502,2574.0,2573.6,35.0]
[1723767333937,3.88516,2573.9,2573.6,35.0]
[1723767334463,3.88538,2573.8,2573.6,35.0]
[1723767334669,3.88516,2573.9,2573.2,2.4419]
[1723767334670,3.258,2573.9,2573.2,2.4419]
[1723767334821,3.88607,2573.3,2572.9,2.4419]
[1723767335017,3.88652,2573.0,2572.5,2.4863]
[1723767335280,3.88652,2573.0,2572.6,35.0]
[1723767335559,3.88682,2572.8,2572.6,35.0]
[1723767335732,3.88652,2573.0,2572.6,35.0]
[1723767335916,5.24552,2573.0,2572.6,35.0]
[1723767336312,3.88671,2572.9,2572.6,35.0]
[1723767336555,5.24552,2573.0,2572.6,35.0]
[1723767337260,3.88667,2572.9,2572.6,35.0]
[1723767337470,5.24552,2573.0,2572.6,35.0]
[1723767337759,7.44,2573.3,2572.6,35.0]
[1723767338071,7.44,2573.3,2572.7,2.4332]
[1723767338072,11.32615,2573.3,2572.7,2.4332]
[1723767338221,12.847364,2573.3,2572.7,2.4332]
[1723767338724,11.32615,2573.3,2572.7,2.4332]
[1723767338919,7.44,2573.3,2572.7,2.4332]
[1723767339126,3.88568,2573.6,2572.7,2.4332]
[1723767339323,7.44,2573.7,2573.0,3.8865]
[1723767339529,7.44,2573.7,2573.1,2.3611]
[1723767339834,7.44,2573.7,2573.1,6.24739]
[1723767340024,7.44,2573.7,2573.2,35.0]
[1723767340224,7.44,2573.7,2573.3,2.2692]
[1723767340667,3.88485,2574.1,2573.3,6.15511]
[1723767340874,7.44,2574.2,2573.5,2.2692]
[1723767341023,11.32472,2574.2,2573.5,2.2692]
[1723767341542,3.88494,2574.1,2573.5,2.2692]
[1723767341863,3.88494,2574.1,2573.6,35.0]
[1723767342064,11.32472,2574.2,2573.6,35.0]
[1723767342772,7.44,2574.2,2573.6,35.0]
[1723767343142,7.44,2574.2,2573.8,2.4972]
[1723767343338,7.44,2574.2,2573.8,6.3825]
[1723767343872,7.44,2574.2,2573.9,35.0]
[1723767344033,3.88427,2574.5,2573.9,35.0]
[1723767344752,11.32418,2574.6,2573.9,35.0]
[1723767344954,11.32418,2574.6,2574.0,2.4972]
[1723767345543,11.32418,2574.6,2574.1,35.0]
[1723767346941,7.44,2574.6,2574.1,35.0]
[1723767347169,11.32411,2574.6,2574.1,35.0]
[1723767347797,7.44,2574.6,2574.2,2.4492]
[1723767348357,15.20719,2575.0,2574.3,35.0]
[1723767348560,15.595547,2575.0,2574.3,35.0]
[1723767348760,7.44,2575.0,2574.5,2.4577]
[1723767349461,7.44,2575.0,2574.6,35.0]
[1723767350316,11.32351,2575.0,2574.6,35.0]
[1723767350830,7.44,2575.0,2574.6,35.0]
[1723767351915,11.3235,2575.0,2574.6,35.0]
[1723767352122,12.844176,2575.0,2574.6,35.0]
[1723767352483,11.3235,2575.0,2574.6,35.0]
[1723767354508,3.88326,2575.2,2574.6,35.0]
[1723767355046,3.88343,2575.1,2574.6,35.0]
[1723767356406,19.62,2575.3,2574.6,35.0]
[1723767356640,3.88361,2575.0,2574.6,35.0]
[1723767356850,4.272091,2574.9,2574.6,35.0]
[1723767357004,3.8838,2574.8,2574.6,35.0]
[1723767357420,0.388361,2574.9,2574.6,35.0]
[1723767357622,3.88327,2575.2,2574.6,35.0]
[1723767357849,19.62,2575.3,2574.7,6.22603]
[1723767358058,19.62,2575.3,2574.8,2.3422]
[1723767359510,3.88268,2575.6,2574.8,6.22597]
[1723767359718,3.88268,2575.6,2574.9,2.3422]
[1723767359957,7.44,2575.7,2575.1,2.3422]
[1723767360529,11.32245,2575.7,2575.1,2.3422]
[1723767361565,11.32245,2575.7,2575.2,35.0]
[1723767363407,3.88259,2575.6,2575.2,35.0]
[1723767363613,23.50212,2576.0,2575.2,35.0]
[1723767363774,3.88237,2575.8,2575.3,2.2793]
[1723767363963,7.76476,2575.8,2575.3,2.2793]
[1723767364360,7.76476,2575.8,2575.4,35.0]
[1723767364903,3.88237,2575.8,2575.4,35.0]
[1723767365060,7.76475,2575.8,2575.4,35.0]
[1723767365582,3.88247,2575.7,2575.4,35.0]
[1723767365975,3.88237,2575.8,2575.4,35.0]
[1723767367715,11.32207,2576.0,2575.5,2.2873]
[1723767367921,15.20416,2576.0,2575.5,2.2873]
[1723767368277,3.88207,2576.0,2575.6,35.0]
[1723767369021,11.32177,2576.2,2575.7,2.2887]
[1723767369713,11.32177,2576.2,2575.8,35.0]
[1723767370379,11.32176,2576.2,2575.8,35.0]
[1723767370729,3.88184,2576.1,2575.8,35.0]
[1723767371020,11.32176,2576.2,2575.8,35.0]
[1723767371021,3.88208,2576.0,2575.8,35.0]
[1723767371219,7.76419,2576.0,2575.8,35.0]
[1723767371915,3.88208,2576.0,2575.8,35.0]
[1723767372702,7.76416,2576.0,2575.8,35.0]
[1723767372903,7.76415,2576.0,2575.8,35.0]
[1723767373882,3.88207,2576.0,2575.7,2.2887]
[1723767374417,3.88207,2576.0,2575.8,35.0]
[1723767374644,3.88207,2576.0,2575.7,2.2887]
[1723767374916,7.76416,2576.0,2575.7,2.2887]
[1723767375107,7.76416,2576.0,2575.7,37.2887]
[1723767375504,3.88214,2575.9,2575.7,37.2887]
[1723767377581,7.76436,2575.9,2575.7,37.2887]
[1723767377781,3.88214,2575.9,2575.7,37.2887]
[1723767378192,4.658539,2575.9,2575.4,2.4715]
[1723767378394,3.88237,2575.8,2575.4,2.4715]
[1723767378882,3.88237,2575.8,2575.5,35.0]
[1723767385451,3.88214,2575.9,2575.5,35.0]
[1723767385596,3.8823,2575.8,2575.5,35.0]
[1723767385802,3.88227,2575.9,2575.5,35.0]
[1723767386239,7.7645,2575.9,2575.5,35.0]
[1723767386547,3.88223,2575.9,2575.5,35.0]
[1723767388124,7.76387,2576.1,2575.5,35.0]
[1723767388326,3.882,2576.0,2575.6,2.3755]
[1723767388835,3.88221,2575.9,2575.6,2.3755]
[1723767389062,3.88221,2575.9,2575.7,35.0]
[1723767389776,3.88218,2575.9,2575.7,35.0]
[1723767390573,3.882,2576.0,2575.7,35.0]
[1723767390933,7.76412,2576.0,2575.7,35.0]
[1723767391329,3.88217,2575.9,2575.7,35.0]
[1723767396346,1.356,2575.8,2575.7,35.0]
[1723767396547,0.523817,2575.8,2575.4,2.2927]
[1723767396751,3.88301,2575.4,2575.0,2.2927]
[1723767396979,3.88375,2574.9,2574.5,2.2836]
[1723767397194,3.88418,2574.6,2574.2,2.2836]
[1723767397359,1.356,2574.4,2574.2,2.2836]
[1723767397559,0.26837277,2574.3,2573.8,2.2836]
[1723767397763,1.356,2573.9,2573.8,2.2836]
[1723767397954,0.26835308,2573.9,2573.8,2.2836]
[1723767398152,0.26835308,2573.9,2573.1,2.49514335]
[1723767398153,3.52735308,2573.9,2573.0,3.17805217]
[1723767398350,3.259,2573.1,2573.0,2.367]
[1723767398707,3.259,2573.1,2573.0,35.0]
[1723767398708,0.26831425,2573.1,2573.0,35.0]
[1723767399300,0.26831425,2573.1,2572.6,2.367]
[1723767399301,3.88646,2573.1,2572.6,2.367]
[1723767399834,3.88646,2573.1,2572.7,35.0]
[1723767400293,7.77295,2573.1,2572.7,35.0]
[1723767400589,3.88657,2573.0,2572.7,35.0]
[1723767400901,3.259,2573.4,2572.7,35.0]
[1723767400902,3.88671,2572.9,2572.7,35.0]
[1723767401051,3.88681,2572.8,2572.7,35.0]
[1723767401253,11.03262,2572.8,2572.7,35.0]
[1723767401874,3.88706,2572.7,2571.9,2.4926]
[1723767402406,3.88706,2572.7,2572.0,35.0]
[1723767403886,6.36735,2573.2,2572.0,38.88799]
[1723767403887,3.88655,2573.0,2572.0,38.88799]
[1723767404099,7.77379,2572.8,2572.0,38.88799]
[1723767404271,7.77379,2572.8,2572.0,35.0]
[1723767404272,3.88714,2572.6,2572.0,35.0]
[1723767404669,7.77438,2572.6,2572.0,35.0]
[1723767404910,3.88714,2572.6,2572.0,35.0]
[1723767407169,0.7774,2572.6,2572.0,35.0]
[1723767407471,3.88773,2572.2,2572.0,35.0]
[1723767407695,3.88787,2572.1,2572.0,35.0]
[1723767407907,3.88773,2572.2,2572.0,35.0]
[1723767408430,7.77559,2572.2,2572.0,35.0]
[1723767408577,3.88773,2572.2,2572.0,35.0]
[1723767408977,3.88777,2572.2,2572.0,35.0]
[1723767409209,3.88787,2572.1,2572.0,35.0]
[1723767409429,3.88777,2572.2,2572.0,35.0]
[1723767410072,3.259,2572.5,2572.0,35.0]
[1723767410073,3.259,2572.8,2572.0,35.0]
[1723767410278,3.88736,2572.5,2572.0,35.0]
[1723767411232,3.88742,2572.4,2572.0,35.0]
[1723767411724,3.88736,2572.5,2572.0,35.0]
[1723767412519,3.88736,2572.5,2571.8,2.4251]
[1723767412891,3.88744,2572.4,2571.8,2.4251]
[1723767413107,3.88736,2572.5,2571.9,35.0]
[1723767415515,3.88704,2572.7,2571.9,35.0]
[1723767415717,3.88736,2572.5,2571.9,35.0]
[1723767418464,3.259,2572.8,2571.9,35.0]
[1723767418700,8.41419316,2573.9,2570.8,0.3604722]
[1723767418701,7.44,2573.3,2572.0,3.34825623]
[1723767418974,2.2789,2573.8,2572.1,2.3334]
[1723767418975,27.39107,2573.7,2572.1,2.3334]
[1723767419260,27.39107,2573.7,2572.4,2.3334]
[1723767419261,3.88577,2573.5,2572.4,2.3334]
[1723767419413,3.88577,2573.5,2572.5,2.39614291]
[1723767419915,3.88577,2573.5,2572.6,35.0]
[1723767420116,7.44,2573.7,2572.7,2.3334]
[1723767420316,7.44,2574.1,2573.4,2.3334]
[1723767420616,11.324,2574.7,2573.8,3.88519]
[1723767420943,11.324,2574.7,2573.9,41.21855]
[1723767421144,7.44,2574.7,2573.9,37.3334]
[1723767421345,3.88441,2574.4,2573.9,37.3334]
[1723767421668,11.32396,2574.7,2573.9,38.88504]
[1723767421966,11.32405,2574.7,2574.0,2.2544]
[1723767422911,7.44,2574.7,2574.0,6.1393]
[1723767423124,7.44,2574.7,2574.1,3.88475]
[1723767423369,7.44,2574.7,2574.2,3.88468]
[1723767425118,7.44,2575.2,2574.1,2.377]
[1723767425339,7.44,2575.2,2574.7,2.377]
[1723767425659,19.62,2575.5,2574.7,6.26094]
[1723767425954,21.176267,2575.5,2574.7,6.26094]
[1723767426364,21.176267,2575.5,2574.8,7.76745]
[1723767426365,19.57,2575.5,2574.8,7.76745]
[1723767426542,7.44,2575.5,2574.9,3.88363]
[1723767427017,7.44,2575.5,2574.8,3.88367]
[1723767428462,11.32276,2575.5,2574.8,3.88367]
[1723767428960,7.44,2575.5,2574.8,3.88367]
[1723767429962,11.32283,2575.5,2574.7,6.26093]
[1723767430726,7.44,2575.5,2574.7,6.26093]
[1723767431465,11.32274,2575.5,2574.7,6.26093]
[1723767431767,3.88274,2575.5,2574.7,6.26093]
[1723767433135,3.88274,2575.5,2574.8,3.88379]
[1723767436464,3.88274,2575.5,2574.9,35.0]
[1723767444047,7.76557,2575.5,2574.9,35.0]
[1723767444273,3.88274,2575.5,2574.9,35.0]
[1723767444877,7.76558,2575.5,2574.9,35.0]
[1723767445438,1.520558,2575.5,2574.2,2.3272]
[1723767445639,2.4274,2575.8,2573.9,2.3272]
[1723767445640,2.3282,2574.9,2573.9,2.3272]
[1723767445855,7.76828,2574.6,2573.9,2.3272]
[1723767446046,7.76828,2574.6,2574.0,35.0]
[1723767446253,3.88409,2574.6,2574.0,35.0]
[1723767446753,3.884,2574.7,2574.0,38.88496]
[1723767446968,2.3282,2574.9,2574.1,3.88484]
[1723767447169,3.88382,2574.8,2574.1,3.88484]
[1723767447485,3.88327,2575.2,2574.5,3.88422]
[1723767447676,4.15140702,2575.1,2574.4,2.4624]
[1723767447973,3.88352,2575.0,2574.4,2.4624]
[1723767448276,7.76778,2574.8,2574.1,6.17368]
[1723767448475,7.76778,2574.8,2574.2,35.0]
[1723767448666,0.26806537,2574.7,2574.2,35.0]
[1723767449270,3.88388,2574.8,2574.2,35.0]
[1723767449271,4.15223537,2574.6,2574.2,35.0]
[1723767449444,3.88448,2574.4,2574.2,35.0]
[1723767449647,0.26806537,2574.5,2573.3,4.69705217]
[1723767449648,3.88504,2574.0,2573.3,4.69705217]
[1723767449848,0.26806537,2573.9,2573.3,4.69705217]
[1723767450086,0.26806537,2573.9,2573.4,35.0]
[1723767450286,3.88487,2574.1,2573.4,35.0]
[1723767450444,0.26800196,2574.0,2573.7,6.19935]
[1723767450648,7.44,2574.4,2573.9,3.88505]
[1723767450850,0.26802299,2574.3,2573.9,3.88505]
[1723767451162,3.88413,2574.6,2573.9,38.88505]
[1723767451361,0.26802499,2574.5,2573.9,38.88505]
[1723767451576,11.32365,2574.9,2573.9,35.49113887]
[1723767451766,0.26803626,2574.8,2574.0,2.3139]
[1723767452082,0.26803626,2574.7,2574.2,3.88461]
[1723767452384,0.26803626,2574.6,2574.2,3.88461]
[1723767452593,0.2680414,2574.5,2574.0,6.19877]
[1723767452884,3.88383,2574.8,2574.0,10.08368]
[1723767453081,0.26801861,2574.7,2574.0,10.08368]
[1723767453282,3.88383,2574.8,2574.0,6.19877]
[1723767453283,0.26801861,2574.6,2574.0,6.19877]
[1723767453594,0.26801861,2574.5,2574.0,6.19877]
[1723767453799,0.26801861,2574.4,2574.0,6.19877]
[1723767454095,6.37627,2574.7,2574.0,6.19877]
[1723767454300,0.26796617,2574.6,2574.0,6.19877]
[1723767454650,0.26796617,2574.6,2574.1,3.88473]
[1723767454852,0.26796617,2574.5,2574.0,6.19877]
[1723767455201,7.44,2574.9,2573.9,35.0]
[1723767455502,3.88435,2574.5,2573.9,35.0]
[1723767455668,0.26794847,2574.4,2573.9,35.0]
[1723767455995,0.26794847,2574.3,2573.9,35.0]
[1723767456324,0.26794847,2574.2,2573.9,35.0]
[1723767456787,0.26783781,2574.1,2573.9,35.0]
[1723767456987,3.88442,2574.4,2573.9,35.0]
[1723767457319,0.26783361,2574.3,2573.9,35.0]
[1723767458137,3.88385,2574.8,2574.0,3.88499]
[1723767458296,0.26786076,2574.7,2574.0,3.88499]
[1723767458620,0.26786076,2574.6,2573.9,41.20083]
[1723767458817,0.26786076,2574.5,2573.9,41.20083]
[1723767459018,7.44,2574.9,2574.2,3.8846]
[1723767459227,0.26789483,2574.8,2574.2,3.8846]
[1723767460514,0.26788623,2574.7,2574.2,3.8847]
[1723767461717,0.26788623,2574.7,2574.0,7.76976]
[1723767462506,0.26788623,2574.7,2574.1,3.88482]
[1723767462744,0.26788623,2574.7,2574.2,3.88462]
[1723767462925,0.26788623,2574.6,2574.2,3.88462]
[1723767463090,11.32372,2574.9,2574.2,3.88462]
[1723767463291,0.26789605,2574.8,2574.2,3.88462]
[1723767463531,0.26789605,2574.8,2574.2,3.88352625]
[1723767464597,11.32372,2574.9,2574.2,3.88352625]
[1723767464803,0.26790411,2574.8,2574.2,3.88352625]
[1723767465229,4.15170411,2574.8,2574.2,3.88352625]
[1723767465429,0.26790411,2574.7,2574.2,3.88352625]
[1723767465758,0.26790411,2574.7,2574.3,1.35043921]
[1723767465957,0.26790411,2574.6,2574.3,9.79462014]
[1723767466104,7.44,2574.9,2574.4,36.35038976]
[1723767466453,0.26791117,2574.8,2574.4,35.0]
[1723767466620,0.26791117,2574.8,2574.4,38.88439]
[1723767467456,0.26791117,2574.8,2574.5,3.88424]
[1723767467741,18.39089,2575.2,2574.7,3.88385]
[1723767467742,7.44,2575.1,2574.7,3.88385]
[1723767467901,7.44,2575.1,2574.4,3.14695217]
[1723767467902,0.26792212,2575.0,2574.5,6.7206652]
[1723767468105,0.26792212,2575.0,2574.8,35.0]
[1723767469063,0.26791731,2574.9,2574.8,35.0]
[1723767469413,7.44,2575.1,2574.8,35.0]
[1723767469724,0.26791221,2575.0,2574.8,35.0]
[1723767470622,0.26791403,2574.9,2574.8,35.0]
[1723767470957,2.74891403,2575.0,2574.8,35.0]
[1723767471238,0.69228234,2574.9,2574.8,35.0]
[1723767471811,0.26791403,2574.9,2574.8,35.0]
[1723767472034,0.26791403,2575.0,2574.8,35.0]
[1723767472347,0.26791403,2574.9,2574.8,35.0]
[1723767472837,0.26791403,2575.0,2574.8,35.0]
[1723767473053,7.44,2575.1,2574.8,35.0]
[1723767473257,0.26791233,2575.0,2574.8,35.0]
[1723767473607,10.01126292,2575.8,2575.1,3.88334]
[1723767473807,0.69238788,2575.7,2575.1,3.88334]
[1723767474006,0.69238788,2575.6,2574.9,6.2557]
[1723767474241,3.88252,2575.7,2574.9,6.2557]
[1723767474242,0.69238788,2575.5,2574.9,6.2557]
[1723767474448,10.01126292,2575.8,2575.1,3.88328]
[1723767474449,0.26792385,2575.4,2575.1,3.88328]
[1723767474602,2.4248,2575.8,2575.2,35.0]
[1723767474808,0.69237352,2575.7,2575.2,38.88318]
[1723767475008,0.26790953,2575.6,2575.2,38.88318]
[1723767475218,0.26790953,2575.5,2575.2,38.88318]
[1723767475469,11.46829292,2576.0,2575.2,38.8831]
[1723767475631,1.29691509,2575.9,2575.2,38.8831]
[1723767475838,0.69234641,2575.8,2575.2,38.8831]
[1723767476148,0.69233005,2575.7,2575.2,35.0]
[1723767476354,0.69232169,2575.6,2575.2,35.0]
[1723767476532,0.2678957,2575.5,2575.2,35.0]
[1723767476859,3.88229,2575.8,2575.2,35.0]
[1723767476860,0.2678957,2575.4,2575.2,35.0]
[1723767477064,3.88229,2575.8,2575.2,35.0]
[1723767477363,0.69231572,2575.7,2575.2,35.0]
[1723767477665,0.26788933,2575.6,2575.2,35.0]
[1723767477957,0.26788933,2575.5,2575.2,35.0]
[1723767478161,3.88229,2575.8,2575.2,35.0]
[1723767478470,0.26789908,2575.7,2575.2,38.88311]
[1723767478621,0.26789908,2575.6,2575.2,38.88311]
[1723767478830,3.88218,2575.9,2575.2,38.88311]
[1723767479031,0.6923663,2575.8,2575.2,38.88311]
[1723767479238,0.26790354,2575.7,2575.2,38.88311]
[1723767479450,3.88218,2575.9,2575.2,38.88311]
[1723767479648,0.26790137,2575.8,2575.2,38.88311]
[1723767479976,0.26790137,2575.8,2575.3,3.88294]
[1723767480157,3.88206,2576.0,2575.4,2.4657]
[1723767480358,0.26790308,2575.9,2575.6,3.88258]
[1723767480671,3.88154,2576.3,2575.4,10.23122]
[1723767480672,3.88174,2576.2,2575.4,10.23122]
[1723767480881,0.69238086,2576.1,2575.5,3.88269]
[1723767481170,3.88174,2576.2,2575.5,3.88269]
[1723767481171,0.26789053,2576.0,2575.5,3.88269]
[1723767481350,0.26789053,2575.9,2575.4,6.34846]
[1723767481672,1.00199719,2576.2,2575.5,3.88265]
[1723767481974,0.26789536,2576.1,2575.5,3.88265]
[1723767482140,0.30449804,2576.0,2575.5,3.88265]
[1723767482334,0.03660268,2576.0,2575.5,3.88265]
[1723767482536,3.88132,2576.5,2575.7,2.4333]
[1723767482764,0.30479385,2576.4,2575.8,3.95987168]
[1723767482966,0.26789593,2576.3,2575.7,2.4333]
[1723767483276,0.03688293,2576.2,2575.7,2.4333]
[1723767483662,3.88155,2576.3,2575.7,2.4333]
[1723767483870,0.03679833,2576.1,2575.7,2.4333]
[1723767484169,3.88155,2576.3,2575.7,2.4333]
[1723767484340,0.03438046,2576.2,2575.7,2.4333]
[1723767485160,0.03438046,2576.2,2575.7,6.3157]
[1723767485369,3.88142,2576.4,2575.7,6.3157]
[1723767485563,0.03442813,2576.3,2575.7,6.3157]
[1723767486645,0.03442813,2576.3,2575.8,3.88226]
[1723767486846,0.03442813,2576.3,2575.8,7.76443]
[1723767487045,3.881,2576.7,2575.8,3.88217]
[1723767487257,0.03684941,2576.2,2576.0,3.88197]
[1723767487456,5.25006687,2576.7,2576.1,0.0776257]
[1723767488089,6.32241,2577.1,2576.3,3.88142]
[1723767488379,3.87979,2577.5,2576.3,0.02588291]
[1723767488580,0.26792539,2577.4,2576.8,2.3768]
[1723767488882,4.14788539,2577.4,2576.8,2.3768]
[1723767489040,3.87979,2577.5,2576.8,2.3768]
[1723767489244,3.87979,2577.5,2576.8,6.25745]
[1723767489482,10.20101,2577.7,2576.9,3.88061]
[1723767489645,0.632148,2577.6,2576.9,3.88061]
[1723767490267,0.632148,2577.6,2576.9,3.88054]
[1723767490745,0.632148,2577.6,2576.9,7.76108]
[1723767490976,0.632148,2577.6,2576.9,3.88054]
[1723767491358,4.511858,2577.6,2576.9,3.88054]
[1723767491554,5.2889638,2577.5,2576.9,3.88054]
[1723767491970,1.4092338,2577.5,2576.9,3.88054]
[1723767493190,9.58048,2577.7,2576.9,3.88053]
[1723767493387,3.259,2577.7,2577.1,3.8802]
[1723767493690,5.7092,2578.0,2577.3,3.87992]
[1723767493892,6.342106,2578.0,2577.3,3.87992]
[1723767494287,9.63537,2578.3,2577.5,3.87972]
[1723767494450,3.87868,2578.2,2577.5,3.87972]
[1723767495470,5.7568,2578.3,2577.6,3.87946]